fUSD/lending_fUSD_20240613
["ID","MTS","AMOUNT","RATE_DAILY","PERIOD"]
[329377178,1718292672651,-500.0,0.00025478,3]
[329377179,1718292672666,-500.0,0.00025478,3]
[329377180,1718292672692,-689.43,0.00025478,3]
[329377181,1718292672706,-500.0,0.00025478,3]
[329377182,1718292672717,-500.0,0.00025478,3]
[329377183,1718292672745,-628.08,0.00025478,3]
[329377184,1718292672766,-500.0,0.00025478,3]
[329377185,1718292672822,-500.0,0.00025478,3]
[329377186,1718292672835,-500.0,0.00025478,3]
[329377187,1718292672846,-500.0,0.00025478,3]
[329377188,1718292672869,-500.0,0.00025478,3]
[329377189,1718292672905,-731.88,0.00025478,3]
[329377190,1718292672918,-277.96,0.00025478,3]
[329377191,1718292672963,-539.27,0.00025478,3]
[329377192,1718292672982,-1216.69,0.00025478,3]
[329377193,1718292672998,-500.0,0.00025478,3]
[329377194,1718292673018,-500.0,0.00025478,3]
[329377195,1718292673031,-800.18,0.00025478,3]
[329377196,1718292673103,-1199.27,0.00025478,3]
[329377197,1718292673137,-1277.74,0.00025478,3]
[329377198,1718292673150,-1138.63,0.00025478,3]
[329377199,1718292673172,-194.29,0.00025478,3]
[329377200,1718292673186,-613.47692883,0.00025478,3]
[329377201,1718292673197,-3406.93,0.00025478,3]
[329377202,1718292673215,-500.0,0.00025478,3]
[329377203,1718292673227,-500.0,0.00025478,3]
[329377204,1718292673241,-500.0,0.00025478,3]
[329377205,1718292673260,-500.0,0.00025478,3]
[329377206,1718292673272,-1350.88,0.00025478,3]
[329377207,1718292673312,-500.0,0.00025478,3]
[329377208,1718292673331,-500.0,0.00025478,3]
[329377209,1718292673344,-851.08,0.00025478,3]
[329377210,1718292673360,-500.0,0.00025478,3]
[329377211,1718292673375,-315.26,0.00025478,3]
[329377212,1718292673394,-947.08,0.00025478,3]
[329377213,1718292673418,-384.94,0.00025478,3]
[329377214,1718292673441,-500.0,0.00025478,3]
[329377215,1718292673456,-727.33,0.00025478,3]
[329377216,1718292673468,-500.0,0.00025478,3]
[329377217,1718292673481,-500.0,0.00025478,3]
[329377218,1718292673492,-310.47,0.00025478,3]
[329377219,1718292673503,-500.0,0.00025478,3]
[329377220,1718292673514,-505.2,0.00025478,3]
[329377221,1718292673526,-500.0,0.00025478,3]
[329377222,1718292673538,-719.42,0.00025478,3]
[329377223,1718292673549,-1080.47,0.00025478,3]
[329377224,1718292673564,-500.0,0.00025478,3]
[329377225,1718292673575,-500.0,0.00025478,3]
[329377226,1718292673615,-500.0,0.00025479,3]
[329377227,1718292673626,-500.0,0.00025479,3]
[329377228,1718292673654,-264.39,0.00025479,3]
[329377229,1718292673694,-500.0,0.00025479,3]
[329377230,1718292673721,-182.50935416,0.00025479,3]
[329377231,1718292673748,-500.0,0.00025479,3]
[329377232,1718292673792,-500.0,0.00025479,3]
[329377233,1718292673813,-2669.88,0.00025479,3]
[329377234,1718292673842,-500.0,0.00025479,3]
[329377235,1718292673912,-500.0,0.00025479,3]
[329377236,1718292673925,-500.0,0.00025479,3]
[329377237,1718292673943,-857.41,0.00025479,3]
[329377238,1718292673955,-500.0,0.00025479,3]
[329377239,1718292673988,-1143.43,0.00025479,3]
[329377240,1718292674006,-500.0,0.00025479,3]
[329377241,1718292674028,-1621.77,0.00025479,3]
[329377242,1718292674057,-674.54,0.00025479,3]
[329377243,1718292674067,-500.0,0.00025479,3]
[329377244,1718292674096,-1174.3,0.00025479,3]
[329377245,1718292674109,-500.0,0.00025479,3]
[329377246,1718292674120,-500.0,0.00025479,3]
[329377247,1718292674133,-500.0,0.00025479,3]
[329377248,1718292674149,-1348.57,0.00025479,3]
[329377249,1718292674172,-500.0,0.00025479,3]
[329377250,1718292674197,-500.0,0.00025479,3]
[329377251,1718292674219,-500.0,0.00025479,3]
[329377252,1718292674232,-500.0,0.00025479,3]
[329377253,1718292674247,-502.75,0.00025479,3]
[329377254,1718292674279,-535.86,0.00025479,3]
[329377255,1718292674302,-1384.42,0.00025479,3]
[329377256,1718292674332,-822.29,0.00025479,3]
[329377257,1718292674355,-500.0,0.00025479,3]
[329377258,1718292674384,-521.6,0.00025479,3]
[329377259,1718292674416,-500.0,0.00025479,3]
[329377260,1718292674427,-500.0,0.00025479,3]
[329377261,1718292674453,-500.0,0.00025479,3]
[329377262,1718292674464,-500.0,0.00025479,3]
[329377263,1718292674484,-1073.92,0.00025479,3]
[329377264,1718292674496,-500.0,0.00025479,3]
[329377265,1718292674514,-2065.58,0.00025479,3]
[329377266,1718292674535,-500.0,0.00025479,3]
[329377267,1718292674554,-649.62,0.00025479,3]
[329377268,1718292674565,-550.84,0.00025479,3]
[329377269,1718292674577,-500.0,0.00025479,3]
[329377270,1718292674598,-500.0,0.00025479,3]
[329377271,1718292674610,-500.0,0.00025479,3]
[329377272,1718292674623,-928.65,0.00025479,3]
[329377273,1718292674634,-502.28,0.00025479,3]
[329377274,1718292674654,-691.98,0.00025479,3]
[329377275,1718292674675,-651.06,0.00025479,3]
[329377276,1718292674688,-500.0,0.00025479,3]
[329377277,1718292674705,-516.01,0.00025479,3]
[329377278,1718292674729,-1917.61,0.00025479,3]
[329377279,1718292674751,-1173.15,0.00025479,3]
[329377280,1718292674777,-500.0,0.00025479,3]
[329377281,1718292674794,-313.89740942,0.00025479,3]
[329377282,1718292674815,-500.0,0.00025479,3]
[329377283,1718292674836,-500.0,0.00025479,3]
[329377284,1718292674876,-1388.4,0.00025479,3]
[329377285,1718292674912,-500.0,0.00025479,3]
[329377286,1718292674923,-719.63,0.00025479,3]
[329377287,1718292674951,-500.0,0.00025479,3]
[329377288,1718292674965,-1123.90701615,0.00025506,2]
[329377289,1718292674976,-156.44,0.00025693,2]
[329377290,1718292674997,-584.07297746,0.00025751,2]
[329377291,1718292675022,-500.0,0.00025751,2]
[329377292,1718292675063,-294.08734587,0.00025751,2]
[329377293,1718292675074,-509.17781098,0.00025751,2]
[329377294,1718292675086,-500.0,0.00025752,3]
[329377295,1718292675109,-500.0,0.00025752,3]
[329377296,1718292675134,-500.0,0.00025752,3]
[329377297,1718292675159,-500.0,0.00025752,3]
[329377298,1718292675174,-500.0,0.00025752,3]
[329377299,1718292675198,-500.0,0.00025752,3]
[329377300,1718292675215,-500.0,0.00025752,3]
[329377301,1718292675232,-500.0,0.00025752,3]
[329377302,1718292675272,-500.0,0.00025752,3]
[329377303,1718292675286,-500.0,0.00025752,3]
[329377304,1718292675299,-500.0,0.00025752,3]
[329377305,1718292675312,-500.0,0.00025752,3]
[329377306,1718292675330,-500.0,0.00025752,3]
[329377307,1718292675345,-154.15,0.00025752,3]
[329377308,1718292675366,-500.0,0.00025752,3]
[329377309,1718292675383,-500.0,0.00025752,3]
[329377310,1718292675397,-724.51,0.00025752,3]
[329377311,1718292675410,-500.0,0.00025752,3]
[329377312,1718292675420,-500.0,0.00025752,3]
[329377313,1718292675453,-500.0,0.00025752,3]
[329377314,1718292675472,-500.0,0.00025752,3]
[329377315,1718292675486,-500.0,0.00025752,3]
[329377316,1718292675530,-500.0,0.00025752,3]
[329377317,1718292675553,-500.0,0.00025752,3]
[329377318,1718292675572,-500.0,0.00025752,3]
[329377319,1718292675587,-500.0,0.00025752,3]
[329377320,1718292675613,-500.0,0.00025752,3]
[329377321,1718292675628,-514.8,0.00025752,3]
[329377322,1718292675644,-1230.19,0.00025752,3]
[329377323,1718292675672,-500.0,0.00025752,3]
[329377324,1718292675690,-500.0,0.00025752,3]
[329377325,1718292675708,-500.0,0.00025752,3]
[329377326,1718292675732,-564.14,0.00025752,3]
[329377327,1718292675770,-820.37,0.00025752,3]
[329377328,1718292675782,-500.0,0.00025752,3]
[329377329,1718292675795,-500.0,0.00025752,3]
[329377330,1718292675817,-1564.46,0.00025752,3]
[329377331,1718292675840,-1160.7,0.00025752,3]
[329377332,1718292675858,-500.0,0.00025752,3]
[329377333,1718292675922,-635.4,0.00025752,3]
[329377334,1718292675970,-984.58,0.00025752,3]
[329377335,1718292675988,-500.0,0.00025752,3]
[329377336,1718292676013,-2101.74,0.00025752,3]
[329377337,1718292676060,-529.09,0.00025752,3]
[329377338,1718292676073,-500.0,0.00025752,3]
[329377339,1718292676084,-1065.38,0.00025752,3]
[329377340,1718292676104,-2589.34,0.00025752,3]
[329377341,1718292676122,-3405.79,0.00025752,3]
[329377342,1718292676134,-789.36,0.00025752,3]
[329377343,1718292676151,-1078.35,0.00025752,3]
[329377344,1718292676167,-446.79052091,0.00025752,3]
[329377345,1718292676180,-500.0,0.00025752,3]
[329377346,1718292676195,-500.0,0.00025752,3]
[329377347,1718292676217,-500.0,0.00025752,3]
[329377348,1718292676228,-590.78,0.00025752,3]
[329377349,1718292676243,-500.0,0.00025752,3]
[329377350,1718292676270,-500.0,0.00025752,3]
[329377351,1718292676297,-689.43,0.00025752,3]
[329377352,1718292676322,-275.99,0.00025752,3]
[329377353,1718292676386,-635.2,0.00025752,3]
[329377354,1718292676412,-628.08,0.00025752,3]
[329377355,1718292676427,-500.0,0.00025752,3]
[329377356,1718292676467,-500.0,0.00025752,3]
[329377357,1718292676480,-500.0,0.00025752,3]
[329377358,1718292676496,-500.0,0.00025752,3]
[329377359,1718292676524,-500.0,0.00025752,3]
[329377360,1718292676544,-731.88,0.00025752,3]
[329377361,1718292676562,-539.27,0.00025752,3]
[329377362,1718292676576,-1216.69,0.00025752,3]
[329377363,1718292676591,-315.96,0.00025752,3]
[329377364,1718292676606,-512.22683288,0.00025752,3]
[329377365,1718292676641,-800.18,0.00025752,3]
[329377366,1718292676653,-1199.27,0.00025752,3]
[329377367,1718292676680,-1277.74,0.00025752,3]
[329377368,1718292676693,-1138.63,0.00025752,3]
[329377369,1718292676709,-3406.93,0.00025752,3]
[329377370,1718292676722,-500.0,0.00025752,3]
[329377371,1718292676763,-500.0,0.00025752,3]
[329377372,1718292676783,-500.0,0.00025752,3]
[329377373,1718292676795,-500.0,0.00025752,3]
[329377374,1718292676809,-1350.88,0.00025752,3]
[329377375,1718292676828,-168.98,0.00025752,3]
[329377376,1718292676841,-482.15,0.00025752,3]
[329377377,1718292676853,-851.08,0.00025752,3]
[329377378,1718292676866,-500.0,0.00025752,3]
[329377379,1718292676878,-947.08,0.00025752,3]
[329377380,1718292676888,-500.0,0.00025752,3]
[329377381,1718292676900,-727.33,0.00025752,3]
[329377382,1718292676918,-500.0,0.00025752,3]
[329377383,1718292676937,-500.0,0.00025752,3]
[329377384,1718292676948,-500.0,0.00025752,3]
[329377385,1718292676959,-505.2,0.00025752,3]
[329377386,1718292676973,-500.0,0.00025752,3]
[329377387,1718292676991,-719.42,0.00025752,3]
[329377388,1718292677012,-1080.47,0.00025752,3]
[329377389,1718292677024,-510.9,0.00025752,3]
[329377390,1718292677036,-500.0,0.00025753,3]
[329377391,1718292677060,-500.0,0.00025753,3]
[329377392,1718292677071,-500.0,0.00025753,3]
[329377393,1718292677120,-500.0,0.00025753,3]
[329377394,1718292677137,-380.42,0.00025753,3]
[329377395,1718292677151,-2669.88,0.00025753,3]
[329377396,1718292677185,-500.0,0.00025753,3]
[329377397,1718292677197,-500.0,0.00025753,3]
[329377398,1718292677233,-637.97,0.00025753,3]
[329377399,1718292677272,-857.41,0.00025753,3]
[329377400,1718292677292,-500.0,0.00025753,3]
[329377401,1718292677314,-1143.43,0.00025753,3]
[329377402,1718292677327,-500.0,0.00025753,3]
[329377403,1718292677341,-1621.77,0.00025753,3]
[329377404,1718292677365,-674.54,0.00025753,3]
[329377405,1718292677377,-500.0,0.00025753,3]
[329377406,1718292677404,-1174.3,0.00025753,3]
[329377407,1718292677414,-500.0,0.00025753,3]
[329377408,1718292677428,-500.0,0.00025753,3]
[329377409,1718292677444,-500.0,0.00025753,3]
[329377410,1718292677456,-1348.57,0.00025753,3]
[329377411,1718292677470,-500.0,0.00025753,3]
[329377412,1718292677481,-500.0,0.00025753,3]
[329377413,1718292677517,-500.0,0.00025753,3]
[329377414,1718292677552,-500.0,0.00025753,3]
[329377415,1718292677581,-502.75,0.00025753,3]
[329377416,1718292677629,-535.86,0.00025753,3]
[329377417,1718292677693,-1384.42,0.00025753,3]
[329377418,1718292677728,-822.29,0.00025753,3]
[329377419,1718292677753,-500.0,0.00025753,3]
[329377420,1718292677776,-521.6,0.00025753,3]
[329377421,1718292677792,-500.0,0.00025753,3]
[329377422,1718292677810,-500.0,0.00025753,3]
[329377423,1718292677823,-500.0,0.00025753,3]
[329377424,1718292677835,-500.0,0.00025753,3]
[329377425,1718292677848,-1073.92,0.00025753,3]
[329377426,1718292677866,-500.0,0.00025753,3]
[329377427,1718292677920,-2065.58,0.00025753,3]
[329377428,1718292677973,-500.0,0.00025753,3]
[329377429,1718292678000,-649.62,0.00025753,3]
[329377430,1718292678023,-550.84,0.00025753,3]
[329377431,1718292678052,-500.0,0.00025753,3]
[329377432,1718292678063,-500.0,0.00025753,3]
[329377433,1718292678081,-500.0,0.00025753,3]
[329377434,1718292678116,-928.65,0.00025753,3]
[329377435,1718292678128,-502.28,0.00025753,3]
[329377436,1718292678141,-691.98,0.00025753,3]
[329377437,1718292678164,-651.06,0.00025753,3]
[329377438,1718292678188,-500.0,0.00025753,3]
[329377439,1718292678218,-516.01,0.00025753,3]
[329377440,1718292678241,-1917.61,0.00025753,3]
[329377441,1718292678256,-1173.15,0.00025753,3]
[329377442,1718292678274,-500.0,0.00025753,3]
[329377443,1718292678286,-500.0,0.00025753,3]
[329377444,1718292678318,-1388.4,0.00025753,3]
[329377445,1718292678330,-719.63,0.00025753,3]
[329377446,1718292678348,-1331.03925421,0.00025973,2]
[329377447,1718292678370,-500.0,0.00026026,3]
[329377448,1718292678407,-500.0,0.00026026,3]
[329377449,1718292678463,-321.0,0.00026026,3]
[329377450,1718292678474,-500.0,0.00026026,3]
[329377451,1718292678485,-500.0,0.00026026,3]
[329377452,1718292678496,-500.0,0.00026026,3]
[329377453,1718292678507,-196.17906371,0.00026026,3]
[329377454,1718292678542,-500.0,0.00026026,3]
[329377455,1718292678564,-500.0,0.00026026,3]
[329377456,1718292678576,-500.0,0.00026026,3]
[329377457,1718292678593,-500.0,0.00026026,3]
[329377458,1718292678604,-500.0,0.00026026,3]
[329377459,1718292678617,-500.0,0.00026026,3]
[329377460,1718292678628,-154.15,0.00026026,3]
[329377461,1718292678645,-500.0,0.00026026,3]
[329377462,1718292678670,-500.0,0.00026026,3]
[329377463,1718292678685,-724.51,0.00026026,3]
[329377464,1718292678712,-500.0,0.00026026,3]
[329377465,1718292678736,-500.0,0.00026026,3]
[329377466,1718292678764,-547.85,0.00026026,3]
[329377467,1718292678788,-500.0,0.00026026,3]
[329377468,1718292678843,-500.0,0.00026026,3]
[329377469,1718292678866,-500.0,0.00026026,3]
[329377470,1718292679025,-500.0,0.00026026,3]
[329377471,1718292679039,-500.0,0.00026026,3]
[329377472,1718292679065,-500.0,0.00026026,3]
[329377473,1718292679083,-500.0,0.00026026,3]
[329377474,1718292679094,-514.8,0.00026026,3]
[329377475,1718292679108,-1230.19,0.00026026,3]
[329377476,1718292679120,-500.0,0.00026026,3]
[329377477,1718292679138,-297.10409784,0.00026026,3]
[329377478,1718292679318,-202.89590216,0.00026026,3]
[329377479,1718292679335,-500.0,0.00026026,3]
[329377480,1718292679365,-296.58059821,0.00026026,3]
[329377481,1718292679395,-523.78940179,0.00026026,3]
[329377482,1718292679448,-439.96108476,0.00026026,3]
[329377483,1718292679477,-60.03891524,0.00026026,3]
[329377484,1718292679490,-522.14291381,0.00026026,3]
[329377485,1718292679513,-1564.46,0.00026026,3]
[329377486,1718292679524,-594.65858762,0.00026026,3]
[329377487,1718292680221,-1107.68259837,0.00022234,2]
[329377488,1718292680245,-539.31740163,0.00022234,2]
[329377489,1718292680267,-500.0,0.00024109,2]
[329377490,1718292680285,-500.0,0.00024109,2]
[329377491,1718292680316,-500.0,0.00024109,2]
[329377492,1718292680341,-223.42501621,0.00024382,2]
[329377493,1718292680355,-500.0,0.00024382,2]
[329377494,1718292680372,-500.0,0.00024382,2]
[329377495,1718292680383,-500.0,0.00024383,2]
[329377496,1718292680396,-500.0,0.00024383,2]
[329377497,1718292680418,-476.08,0.00024656,2]
[329377498,1718292680434,-500.0,0.00024656,2]
[329377499,1718292680446,-500.0,0.00024657,2]
[329377500,1718292680473,-500.0,0.00024657,2]
[329377501,1718292680489,-500.0,0.0002493,3]
[329377502,1718292680536,-500.0,0.0002493,3]
[329377503,1718292680580,-500.0,0.00024931,3]
[329377504,1718292680597,-211.27925946,0.00025204,3]
[329377505,1718292681910,-288.72074054,0.00025204,3]
[329377506,1718292681949,-597.86,0.00025204,3]
[329377507,1718292681973,-262.93263586,0.00025205,3]
[329377508,1718292681997,-237.06736414,0.00025205,3]
[329377509,1718292682014,-500.0,0.00025478,3]
[329377510,1718292682029,-472.78858978,0.00025479,3]
[329377511,1718292682047,-566.04141238,0.00026026,3]
[329377512,1718292682061,-500.0,0.00026026,3]
[329377513,1718292682088,-635.4,0.00026026,3]
[329377514,1718292682101,-984.58,0.00026026,3]
[329377515,1718292682123,-500.0,0.00026026,3]
[329377516,1718292682143,-2101.74,0.00026026,3]
[329377517,1718292682165,-529.09,0.00026026,3]
[329377518,1718292682197,-500.0,0.00026026,3]
[329377519,1718292682217,-1065.38,0.00026026,3]
[329377520,1718292682233,-2589.34,0.00026026,3]
[329377521,1718292682244,-3405.79,0.00026026,3]
[329377522,1718292682260,-789.36,0.00026026,3]
[329377523,1718292682274,-1078.35,0.00026026,3]
[329377524,1718292682297,-500.0,0.00026026,3]
[329377525,1718292682318,-500.0,0.00026026,3]
[329377526,1718292682328,-500.0,0.00026026,3]
[329377527,1718292682340,-590.78,0.00026026,3]
[329377528,1718292682358,-500.0,0.00026026,3]
[329377529,1718292682393,-500.0,0.00026026,3]
[329377530,1718292682408,-689.43,0.00026026,3]
[329377531,1718292682420,-628.08,0.00026026,3]
[329377532,1718292682458,-500.0,0.00026026,3]
[329377533,1718292682487,-500.0,0.00026026,3]
[329377534,1718292682510,-500.0,0.00026026,3]
[329377535,1718292682532,-500.0,0.00026026,3]
[329377536,1718292682547,-731.88,0.00026026,3]
[329377537,1718292682571,-539.27,0.00026026,3]
[329377538,1718292682588,-1216.69,0.00026026,3]
[329377539,1718292682606,-800.18,0.00026026,3]
[329377540,1718292682620,-1199.27,0.00026026,3]
[329377541,1718292682634,-1277.74,0.00026026,3]
[329377542,1718292682646,-1138.63,0.00026026,3]
[329377543,1718292682662,-3406.93,0.00026026,3]
[329377544,1718292682692,-500.0,0.00026026,3]
[329377545,1718292682713,-500.0,0.00026026,3]
[329377546,1718292682737,-500.0,0.00026026,3]
[329377547,1718292682771,-500.0,0.00026026,3]
[329377548,1718292682800,-1350.88,0.00026026,3]
[329377549,1718292682828,-851.08,0.00026026,3]
[329377550,1718292682845,-500.0,0.00026026,3]
[329377551,1718292682857,-947.08,0.00026026,3]
[329377552,1718292682875,-500.0,0.00026026,3]
[329377553,1718292682901,-727.33,0.00026026,3]
[329377554,1718292682928,-336.93,0.00026026,3]
[329377555,1718292682954,-500.0,0.00026026,3]
[329377556,1718292682971,-500.0,0.00026026,3]
[329377557,1718292682999,-505.2,0.00026026,3]
[329377558,1718292683028,-500.0,0.00026026,3]
[329377559,1718292683053,-719.42,0.00026026,3]
[329377560,1718292683110,-1080.47,0.00026026,3]
[329377561,1718292683148,-500.0,0.00026027,3]
[329377562,1718292683179,-352.49,0.00026027,3]
[329377563,1718292683207,-500.0,0.00026027,3]
[329377564,1718292683234,-500.0,0.00026027,3]
[329377565,1718292683279,-2669.88,0.00026027,3]
[329377566,1718292683313,-500.0,0.00026027,3]
[329377567,1718292683330,-500.0,0.00026027,3]
[329377568,1718292683343,-857.41,0.00026027,3]
[329377569,1718292683359,-500.0,0.00026027,3]
[329377570,1718292683373,-1143.43,0.00026027,3]
[329377571,1718292683385,-500.0,0.00026027,3]
[329377572,1718292683400,-1621.77,0.00026027,3]
[329377573,1718292683414,-674.54,0.00026027,3]
[329377574,1718292683442,-500.0,0.00026027,3]
[329377575,1718292683488,-1174.3,0.00026027,3]
[329377576,1718292683500,-500.0,0.00026027,3]
[329377577,1718292683517,-500.0,0.00026027,3]
[329377578,1718292683532,-500.0,0.00026027,3]
[329377579,1718292683553,-1348.57,0.00026027,3]
[329377580,1718292683595,-500.0,0.00026027,3]
[329377581,1718292683618,-500.0,0.00026027,3]
[329377582,1718292683629,-500.0,0.00026027,3]
[329377583,1718292683643,-500.0,0.00026027,3]
[329377584,1718292683658,-502.75,0.00026027,3]
[329377585,1718292683680,-535.86,0.00026027,3]
[329377586,1718292683736,-1384.42,0.00026027,3]
[329377587,1718292683757,-822.29,0.00026027,3]
[329377588,1718292683778,-500.0,0.00026027,3]
[329377589,1718292683807,-521.6,0.00026027,3]
[329377590,1718292683824,-500.0,0.00026027,3]
[329377591,1718292683849,-500.0,0.00026027,3]
[329377592,1718292683879,-500.0,0.00026027,3]
[329377593,1718292683891,-500.0,0.00026027,3]
[329377594,1718292683924,-1073.92,0.00026027,3]
[329377595,1718292683948,-500.0,0.00026027,3]
[329377596,1718292683959,-500.0,0.00026027,3]
[329377597,1718292683979,-500.0,0.00026027,3]
[329377598,1718292683991,-500.0,0.00026027,3]
[329377599,1718292684012,-500.0,0.00026027,3]
[329377600,1718292684039,-500.0,0.00026027,3]
[329377601,1718292684061,-2065.58,0.00026027,3]
[329377602,1718292684092,-500.0,0.00026027,3]
[329377603,1718292684142,-649.62,0.00026027,3]
[329377604,1718292684159,-550.84,0.00026027,3]
[329377605,1718292684171,-500.0,0.00026027,3]
[329377606,1718292684186,-500.0,0.00026027,3]
[329377607,1718292684197,-500.0,0.00026027,3]
[329377608,1718292684212,-928.65,0.00026027,3]
[329377609,1718292684234,-502.28,0.00026027,3]
[329377610,1718292684253,-691.98,0.00026027,3]
[329377611,1718292684269,-651.06,0.00026027,3]
[329377612,1718292684296,-500.0,0.00026027,3]
[329377613,1718292684317,-516.01,0.00026027,3]
[329377614,1718292684339,-1917.61,0.00026027,3]
[329377615,1718292684359,-1173.15,0.00026027,3]
[329377616,1718292684373,-500.0,0.00026027,3]
[329377617,1718292684388,-500.0,0.00026027,3]
[329377618,1718292684416,-1388.4,0.00026027,3]
[329377619,1718292684434,-719.63,0.00026027,3]
[329377620,1718292684452,-1357.37,0.00026064,2]
[329377621,1718292684464,-290.12695926,0.00026098,2]
[329377622,1718292684497,-218.84992603,0.000263,3]
[329377623,1718292684526,-280.84,0.000263,3]
[329377624,1718292684545,-500.0,0.000263,3]
[329377625,1718292684560,-500.0,0.000263,3]
[329377626,1718292684604,-500.0,0.000263,3]
[329377627,1718292684622,-500.0,0.000263,3]
[329377628,1718292684639,-500.0,0.000263,3]
[329377629,1718292684705,-227.228095,0.000263,3]
[329377630,1718292684730,-500.0,0.000263,3]
[329377631,1718292684752,-500.0,0.000263,3]
[329377632,1718292684783,-500.0,0.000263,3]
[329377633,1718292684838,-154.15,0.000263,3]
[329377634,1718292684851,-500.0,0.000263,3]
[329377635,1718292684864,-500.0,0.000263,3]
[329377636,1718292684919,-724.51,0.000263,3]
[329377637,1718292684932,-500.0,0.000263,3]
[329377638,1718292684959,-500.0,0.000263,3]
[329377639,1718292684985,-500.0,0.000263,3]
[329377640,1718292685004,-500.0,0.000263,3]
[329377641,1718292685034,-500.0,0.000263,3]
[329377642,1718292685068,-500.0,0.000263,3]
[329377643,1718292685083,-500.0,0.000263,3]
[329377644,1718292685104,-394.553163,0.000263,3]
[329377645,1718292685134,-500.0,0.000263,3]
[329377646,1718292685167,-514.8,0.000263,3]
[329377647,1718292685187,-500.0,0.000263,3]
[329377648,1718292685205,-500.0,0.000263,3]
[329377649,1718292685245,-820.37,0.000263,3]
[329377650,1718292685256,-1564.46,0.000263,3]
[329377651,1718292685309,-1160.7,0.000263,3]
[329377652,1718292685356,-500.0,0.000263,3]
[329377653,1718292685388,-635.4,0.000263,3]
[329377654,1718292685440,-984.58,0.000263,3]
[329377655,1718292685469,-500.0,0.000263,3]
[329377656,1718292685492,-2101.74,0.000263,3]
[329377657,1718292685510,-529.09,0.000263,3]
[329377658,1718292685540,-500.0,0.000263,3]
[329377659,1718292685559,-1065.38,0.000263,3]
[329377660,1718292685609,-2589.34,0.000263,3]
[329377661,1718292685625,-3405.79,0.000263,3]
[329377662,1718292685645,-789.36,0.000263,3]
[329377663,1718292685666,-1078.35,0.000263,3]
[329377664,1718292685684,-500.0,0.000263,3]
[329377665,1718292685709,-228.57818261,0.000263,3]
[329377666,1718292685736,-500.0,0.000263,3]
[329377667,1718292685747,-590.78,0.000263,3]
[329377668,1718292685764,-500.0,0.000263,3]
[329377669,1718292685776,-500.0,0.000263,3]
[329377670,1718292685788,-689.43,0.000263,3]
[329377671,1718292685824,-628.08,0.000263,3]
[329377672,1718292685840,-500.0,0.000263,3]
[329377673,1718292685874,-500.0,0.000263,3]
[329377674,1718292685896,-500.0,0.000263,3]
[329377675,1718292685912,-500.0,0.000263,3]
[329377676,1718292685924,-731.88,0.000263,3]
[329377677,1718292686003,-539.27,0.000263,3]